Workbook

Sheet 견적서
B2: 견 적 서
B5: 번호 | C5: 품명 | H5: 규 격 | K5: 단 위 | L5: 수 량 | M5: 단 가 | N5: 금 액
B7: 1 | C7: 재 료 비 | N7: =원가계산!D7 -> 0
B8: 2 | C8: 노 무 비 | N8: =원가계산!D10 -> 0
B9: 3 | C9: 경 비 | N9: =원가계산!D17 -> 0
B10: 4 | C10: 일반관리비 | N10: =원가계산!D19 -> 0
B11: 5 | C11: 이 윤 | N11: =원가계산!D20 -> 0
C24: 소 계 | H24: 천단위 이하 절사 | N24: =SUM(N7:O23)-M24 -> 0
C25: 부 가 세 | N25: =N24*0.1 -> 0
C29: 합 계 | N29: =SUM(N24:O25) -> 0
C31: 비 고
H36: 0

Sheet 원가계산
A1: 공 사 원 가 계 산 서
G2: [단위:원]
A3: 구 분 비 목 | D3: 공사비 | E3: 구성비 | F3: 관련근거 | G3: 적용비율
A5: 순 공 사 원 가 | B5: 재료비 | C5: 직접재료비 | D5: =총괄표!D20 -> 0
C6: 간접재료비
C7: 소 계 | D7: =SUM(D5:D6) -> 0
B8: 노무비 | C8: 직접노무비 | D8: =총괄표!F20 -> 0 | J8: 80%
C9: 간접노무비 | D9: =D8*G9 -> 0 | E9: 직.노×13% | F9: 조달청 기준 | G9: 0
C10: 소 계 | D10: =SUM(D8:D9) -> 0
B11: 경 비 | C11: 산재보험료 | D11: =D10*G11 -> 0 | E11: 노×3.7% | F11: 국토해양부 고시 2011-271 | G11: 0.037
C12: 고용보험료 | D12: =D10*G12 -> 0 | E12: 노×0.87% | F12: 고용노동부 고시 2012-139 | G12: 0.0087
C13: 건강보험료
C14: 연금보험료
C15: 안전관리비 | D15: =(D7+D10)*G15 -> 0 | E15: (재+직·노)×2.93% | F15: 고용노동부 고시 2012-23 | G15: 0.0293
C16: 기타경비 | D16: =(D7+D10)*G16 -> 0 | E16: (재+노)×5.8% | F16: 조달청 기준
C17: 소 계 | D17: =SUM(D11:D16) -> 0
B18: 계 ① | D18: =D7+D10+D17 -> 0
A19: 일 반 관 리 비 ② | D19: =D18*G19 -> 0 | E19: (재+노+경)×6.0% | F19: 조달청 기준 | G19: 0.03
A20: 이 윤 ③ | D20: =SUM(D18:D19)*G20 -> 0 | E20: (노+경+일·관)×15% | F20: 조달청 기준 | G20: 0.02
A21: 공사원가 (④)=①+②+③ | D21: =D18+D19+D20 -> 0
A22: 총 계 (④) | D22: =D21 -> 0 | G22: VAT별도

Sheet 총괄표
A1: 총 괄 표
A3: 품 명 | B3: 단 위 | C3: 재 료 비 | E3: 노 무 비 | G3: 합 계 | H3: 비 고
C4: 단 가 | D4: 금 액 | E4: 단 가 | F4: 금 액 | G4: 금 액
A6: 1. 전산실 환경 개선공사 | B6: 1 | D6: =내역서!G29 -> 0 | F6: =내역서!I29 -> 0 | G6: =SUM(D6,F6) -> 0
A7: 2. 전산실 광케이블 개선공사 | B7: 1 | D7: =내역서!G34 -> 0 | F7: =내역서!I34 -> 0 | G7: 0
A8: 3. 6층 전산실→4층 장비실 및 층간 네트워크 및 전화공사 | B8: 1 | D8: =내역서!G49 -> 0 | F8: =내역서!I49 -> 0 | G8: 0
A9: 4. 전산실 트레이 설치공사 | B9: 1 | D9: =내역서!G63 -> 0 | F9: =내역서!I63 -> 0 | G9: 0
A10: 5. 전산실 케아블 정리 및 철거 | B10: 1 | D10: =내역서!G60 -> 0 | F10: =내역서!I65 -> 0 | G10: 0
A13: 소 계 | D13: =SUM(D6:D12) -> 0 | F13: =SUM(F6:F12) -> 0
A20: 합 계 | D20: =D13 -> 0 | F20: =F13 -> 0 | G20: =D20+F20 -> 0

Sheet 내역서
B1: 견 적 내 역 서
B2: 품 명 | C2: 규 격 | D2: 단위 | E2: 수 량 | F2: 자재비 | H2: 노무비 | J2: 합 계 | K2: 비고
F3: 단 가 | G3: 금 액 | H3: 단 가 | I3: 금 액
B4: 1. 전산실 환경 개선공사
B5: UTP Cable | C5: LS, Cat.6 /4Pair | D5: M | E5: 13500 | G5: =F5*E5 -> 0
B6: Patch Panel | C6: LS ,Cat.6 /24Port(Modular 포함) | D6: EA | E6: 44 | G6: =F6*E6 -> 0
B7: Outlet Modular | C7: LS,Single Gang Box 용 | D7: EA | E7: 96 | G7: 0
B8: Single Gang Box | C8: LS ,Face Flate 4구 포함 | D8: EA | E8: 24 | G8: 0
B9: Patch Cord | C9: Cat.6 3M(적,노,파,회 색깔별로) | D9: EA | E9: 240 | G9: 0
C10: Cat.6 5M(적,노,파,회 색깔별로) | D10: EA | E10: 160 | G10: 0
C11: Cat.6 7M(적,노,파,회 색깔별로) | D11: EA | E11: 140 | G11: 0
B12: 광 Patch Cord | C12: S/M LC to LC 10M | D12: EA | E12: 40 | G12: 0
C13: S/M LC to LC 20M | D13: EA | E13: 40 | G13: 0
C14: M/M 10G LC to LC 3M | D14: EA | E14: 120 | G14: 0
C15: M/M 10G LC to LC 7M | D15: EA | E15: 100 | G15: 0
C16: M/M 10G LC to LC 10M | D16: EA | E16: 60 | G16: 0
C17: M/M 10G LC to LC 20M | D17: EA | E17: 35 | G17: 0
B18: Line Cord | C18: Cat.6 7M | D18: EA | E18: 96 | G18: 0
B19: 4 Bay Rack | C19: INNO 4BAY-4112 | D19: EA | E19: 5 | G19: 0
C20: 덕트,커버,팬 선반 등 포함 | G20: 0
C21: kc14-32NFPMo | D21: EA | E21: 12 | G21: 0
C22: ENTRY PANEL | D22: EA | E22: 92 | G22: 0
C23: BLANK PANEL(1U,2U 포함) | D23: EA | E23: 80 | G23: 0
B24: CD관 | C24: 22mm | D24: M | E24: 350 | G24: 0
C25: 16mm | D25: M | E25: 150 | G25: 0
B26: VELCRO TIE | C26: 파랑색 | D26: Roll | E26: 90 | G26: 0
B27: LABEL | C27: PANDUIT R100*150VIT | D27: Roll | E27: 2 | G27: 0
B28: 잡자재 | C28: 재료비의 3% 이내 | D28: 식 | E28: 1 | G28: 0
B29: 소 계 | G29: =SUM(G5:G28) -> 0 | I29: =인력산출!Y16 -> 0
B30: 2. 전산실 광케이블 개선공사 | G30: =F30*E30 -> 0
B31: 광케이블 | C31: LS ,M/M 10G 8Core | D31: M | E31: 200 | G31: 0
B32: FDF | C32: 16Core,8Core | D32: EA | E32: 8 | G32: 0
B33: Pig tail | C33: S/M , M/M to LC 1M | D33: EA | E33: 160 | G33: 0
B34: 소 계 | G34: =SUM(G30:G33) -> 0 | I34: =인력산출!Y21 -> 0
B35: 3. 6층 전산실→4층 장비실 및 층간 네트워크 및 전화공사
B36: UTP Cable | C36: LS, Cat.6 /4Pair | D36: M | E36: 4550 | G36: =F36*E36 -> 0
C37: LS, Cat.5e/4Pair | D37: M | E37: 1550 | G37: =F37*E37 -> 0
C38: LS, Cat.5e/25Pair | D38: M | E38: 320 | G38: 0
B39: Patch Panel | C39: LS ,Cat.6 /24Port(Modular 포함) | D39: EA | E39: 6 | G39: 0
B40: Outlet Modular | C40: LS,Cat.6 Single Gang Box 용 | D40: EA | E40: 36 | G40: 0
C41: LS,Cat5e Single Gang Box 용 | D41: EA | E41: 12 | G41: 0
B42: Single Gang Box | C42: LS ,Face Flate 4구 포함 | D42: EA | E42: 12 | G42: 0
B43: 110 단자 | C43: 100P | D43: EA | E43: 4 | G43: 0
B44: 단자 브라켓트 | C44: 2U | D44: EA | E44: 2 | G44: 0
B45: CD관 | C45: 28mm | D45: M | E45: 400 | G45: 0
C46: 16mm | D46: M | E46: 150 | G46: 0
B47: VELCRO TIE | C47: 파랑색 | D47: Roll | E47: 50 | G47: 0
B48: 잡자재 | C48: 재료비의 3% 이내 | D48: 식 | E48: 1 | G48: 0
B49: 소 계 | G49: =SUM(G36:G48) -> 0 | I49: =인력산출!Y31 -> 0
B50: 4. 전산실 트레이 설치공사
B51: Mash Cable Tray | C51: 500W * 60H * ¢5.0 | D51: M | E51: 27 | G51: =F51*E51 -> 0
B52: Staight Separator | C52: 분리대( 3M) | D52: EA | E52: 9 | G52: =F52*E52 -> 0
B53: U - Channel Hanger | C53: 40 * 40 *2 , 3t *750L | D53: EA | E53: 22 | G53: 0
B54: Hanger Lord | C54: 3/8 2M 및 앙카포함 | D54: EA | E54: 44 | G54: 0
B55: 체결 부속 자재 | D55: 식 | E55: 1 | G55: 0
B56: HI - TEC CABLE TRAY | C56: 300W * 100H * 0.1t | D56: M | E56: 30 | G56: 0
B57: VERTICAL TEE DOWN TYPE | C57: 300W * 100H | D57: EA | E57: 1 | G57: 0
B58: 90 HORIZONTAL ELBOW | C58: 300W * 100H | D58: EA | E58: 1 | G58: 0
B59: JOINER SET 및 BONDING JUMPER | D59: EA | E59: 22 | G59: 0
B60: U - Channel Hanger | C60: 40 * 40 *2 , 3t *400L | D60: EA | E60: 12 | G60: 0
B61: 기타 부품 | D61: 식 | E61: 1 | G61: 0
B62: 잡자재 | C62: 재료비의 3% 이내 | D62: 식 | E62: 1 | G62: 0
B63: 소 계 | G63: =SUM(G51:G61) -> 0 | I63: =인력산출!Y32 -> 0
B64: 5. 전산실 케아블 정리 및 철거
C65: 악세스 플로아 밑 천장 케이블 철거 | D65: 식 | E65: 1 | I65: =H65 -> 0
B66: 소 계 | I66: =SUM(I65) -> 0

Sheet 인력산출
A2: ▣ 인력산출근거 | G2: 1
A3: 구 분 | B3: 품 명 | C3: 규 격 | D3: 단위 | E3: 단위 | F3: 수량 | G3: 적용 수량 | H3: 통신케이블공 | J3: 통신설비공 | L3: 통신내선공 | N3: 보통인부 | P3: 광케이블설치사 | R3: 특별인부 | T3: 비고(적용) | V3: 내역산출 적용비율 | W3: 인건비 01 | X3: 인건비 02 | Y3: 합
H4: 단위 | I4: 인 | J4: 단위 | K4: 인 | L4: 단위 | M4: 인 | N4: 단위 | O4: 인 | P4: 단위 | Q4: 인 | R4: 단위 | S4: 인
A5: 1. 전산실 환경 개선공사 | B5: UTP CABLE | C5: CAT.6 4PAIR | D5: M | E5: 10 | F5: 13500 | G5: =F5/E5 -> 1350 | H5: 0.18 | I5: =H5*G5*$G$2 -> 243 | T5: 통신 4-3-1 | W5: =(I5*노임단가!C8)*V5 -> 0 | Y5: =SUM(W5:X5) -> 0
B6: UTP 패치판넬 설치 | C6: CAT.6 24Port | D6: EA | E6: 1 | F6: 44 | G6: =F6/E6 -> 44 | I6: 0 | J6: 0.21 | K6: =J6*G6*$G$2 -> 9.24 | M6: =L6*G6*$G$2 -> 0 | N6: 0.21 | O6: =N6*G6*$G$2 -> 9.24 | Q6: =P6*G6*$G$2 -> 0 | S6: =R6*G6*$G$2 -> 0 | T6: 통신 4-3-3 | W6: =(K6*노임단가!C6)*V6 -> 0 | X6: =(O6*노임단가!C10)*V6 -> 0 | Y6: =SUM(W6:X6) -> 0
B7: UTP 패치판넬 성단 | C7: CAT.6 24Port | D7: Port | E7: 1 | F7: 1056 | G7: 1056 | H7: 0.03 | I7: 31.68 | K7: 0 | M7: 0 | N7: 0.02 | O7: 21.12 | Q7: 0 | S7: 0 | T7: 통신 4-3-3 | W7: =(I7*노임단가!C10)*V7 -> 0 | X7: =(O7*노임단가!C11)*V7 -> 0 | Y7: 0
B8: UTP 패치판넬 회선 시험 | C8: CAT.6 24Port | D8: Port | E8: 1 | F8: 1056 | G8: 1056 | H8: 0.05 | I8: 52.8 | N8: 0.03 | O8: 31.68 | T8: 통신 4-3-3 | W8: =(I8*노임단가!C11)*V8 -> 0 | X8: =(O8*노임단가!C12)*V8 -> 0 | Y8: 0
B9: UTP PATCH CORD | C9: CAT.6 3M | D9: EA | E9: 10 | F9: 540 | G9: 54 | H9: 0.4 | I9: 21.6 | N9: 0.54 | O9: 29.16 | T9: 통신 4-3-3 | W9: =(I9*노임단가!C12)*V9 -> 0 | X9: =(O9*노임단가!C13)*V9 -> 0 | Y9: 0
B10: 광 Patch Cord | C10: LC to LC | D10: EA | E10: 10 | F10: 3070 | G10: 307 | H10: 0.07 | I10: 21.49 | O10: 0 | T10: 통신 6-1-1 | W10: =(I10*노임단가!C13)*V10 -> 0 | Y10: 0
B11: OUTLET BOX | C11: CAT.6 4PORT | D11: EA | E11: 1 | F11: 18 | G11: 18 | I11: 0 | L11: 0.15 | M11: =L11*G11*$G$2 -> 2.7 | O11: 0 | T11: 통신 4-3-3 | W11: =(M11*노임단가!C5)*V11 -> 0 | Y11: 0
B12: OUTLET MODULAR | C12: CAT.6 | D12: EA | E12: 10 | F12: 96 | G12: 9.6 | I12: 0 | L12: 0.624 | M12: 5.9904 | O12: 0 | T12: 통신 4-3-2 | W12: =(M12*노임단가!C6)*V12 -> 0 | Y12: 0
B13: Rack 설치 | C13: H:2,000 | D13: EA | E13: 1 | F13: 5 | G13: 5 | I13: 0 | J13: 0.52 | K13: =J13*G13*$G$2 -> 2.6 | M13: 0 | O13: 0 | T13: 통신 4-3-3 | W13: =(K13*노임단가!C13)*V13 -> 0 | Y13: 0
B14: CD관 | C14: 16mm 난연 | D14: M | E14: 10 | F14: 350 | G14: 35 | I14: 0 | K14: 0 | L14: 0.5 | M14: 17.5 | O14: 0 | T14: 통신 3-1-1 | W14: =(M14*노임단가!C8)*V14 -> 0 | Y14: 0
C15: 22mm 난연 | D15: M | E15: 10 | F15: 150 | G15: 15 | I15: 0 | K15: 0 | L15: 0.6 | M15: 9 | O15: 0 | T15: 통신 3-1-1 | W15: =(M15*노임단가!C9)*V15 -> 0 | Y15: 0
I16: 0 | K16: 0 | M16: 0 | O16: 0 | Y16: 0
A17: 2. 전산실 광케이블 개선공사 | B17: 광케이블 포설 | C17: M/M 10G 8Core | D17: M | E17: 100 | F17: 200 | G17: 2 | I17: 0 | K17: 0 | M17: 0 | O17: 0 | P17: 0.94 | Q17: =P17*G17 -> 1.88 | R17: 1.41 | S17: =R17*G17 -> 2.82 | T17: 통신 4-1-1 | W17: =(Q17*노임단가!C12)*V17 -> 0 | X17: =(S17*노임단가!C11)*V17 -> 0 | Y17: 0
B18: FDF 설치 | C18: 16Core | D18: EA | E18: 1 | F18: 8 | G18: 8 | I18: 0 | J18: 0.23 | K18: 1.84 | M18: 0 | N18: 0.23 | O18: 1.84 | T18: 통신 4-1-2-2 | W18: =(O18*노임단가!C10)*V18 -> 0 | X18: =(O18*노임단가!C10)*V18 -> 0 | Y18: 0
B19: 광케이블 접속 | C19: 코어당 | D19: Core | E19: 1 | F19: 160 | G19: 160 | I19: 0 | K19: 0 | M19: 0 | O19: 0 | P19: 0.11 | Q19: =P19*G19 -> 17.6 | R19: 0.11 | S19: =R19*G19 -> 17.6 | T19: 통신 4-1-2-1 | W19: =(Q19*노임단가!C14)*V19 -> 0 | X19: =(S19*노임단가!C13)*V19 -> 0 | Y19: 0
B20: 광케이블 시험 및 FLUKE Test | C20: 코어당 | D20: Core | E20: 1 | F20: 160 | G20: 160 | I20: 0 | K20: 0 | M20: 0 | O20: 0 | P20: 0.28 | Q20: =P20*G20 -> 44.8 | R20: 0.23 | S20: =R20*G20 -> 36.8 | T20: 통신 4-1-2-1 | W20: =(Q20*노임단가!C15)*V20 -> 0 | X20: =(S20*노임단가!C14)*V20 -> 0 | Y20: 0
I21: 0 | K21: 0 | M21: 0 | O21: 0 | Y21: 0
A22: 3. 6층 전산실→4층 장비실 및 층간 네트워크 및 전화공사 | B22: UTP Cable | C22: LS, Cat.6 /4Pair | D22: M | E22: 10 | F22: 4550 | G22: 455 | H22: 0.15 | I22: 68.25 | K22: 0 | M22: 0 | O22: 0 | T22: 통신 4-3-1 | W22: =(I22*노임단가!C8)*V22 -> 0 | Y22: 0
C23: LS, Cat.5e/4Pair | D23: M | E23: 10 | F23: 1550 | G23: 155 | H23: 0.15 | I23: 23.25 | K23: 0 | M23: 0 | O23: 0 | T23: 통신 4-3-1 | W23: =(I23*노임단가!C9)*V23 -> 0 | Y23: 0
C24: LS, Cat.5e/25Pair | D24: M | E24: 10 | F24: 320 | G24: 32 | H24: 0.24 | I24: 7.68 | K24: 0 | M24: 0 | O24: 0 | T24: 통신 4-3-1 | W24: =(I24*노임단가!C10)*V24 -> 0 | Y24: 0
B25: UTP 패치판넬 설치 | C25: CAT.6 24Port | D25: EA | E25: 1 | F25: 6 | G25: 6 | I25: 0 | J25: 0.21 | K25: 1.26 | M25: 0 | O25: 0 | T25: 통신 4-3-3 | W25: =(K25*노임단가!C6)*V25 -> 0 | Y25: 0
B26: OUTLET BOX | C26: CAT.6 4PORT | D26: EA | E26: 1 | F26: 12 | G26: 12 | I26: 0 | K26: 0 | L26: 0.15 | M26: 1.8 | O26: 0 | T26: 통신 4-3-3 | W26: =(M26*노임단가!C5)*V26 -> 0 | Y26: 0
B27: OUTLET MODULAR | C27: CAT.6 Modular | D27: EA | E27: 10 | F27: 26 | G27: 2.6 | I27: 0 | K27: 0 | L27: 0.39 | M27: 1.014 | O27: 0 | T27: 통신 4-3-2 | W27: =(M27*노임단가!C6)*V27 -> 0 | Y27: 0
B28: 110단자 | C28: 100P | D28: EA | E28: 1 | F28: 4 | G28: 4 | I28: 0 | J28: 0.31 | K28: 1.24 | M28: 0 | O28: 0 | T28: 통신 4-3-3 | W28: =(K28*노임단가!C9)*V28 -> 0 | Y28: 0
B29: CD관 | C29: 28mm 난연 | D29: M | E29: 10 | F29: 400 | G29: 40 | I29: 0 | L29: 0.8 | M29: 32 | O29: 0 | T29: 통신 3-1-1 | W29: =(M29*노임단가!C8)*V29 -> 0 | Y29: 0
C30: 16mm 난연 | D30: M | E30: 10 | F30: 150 | G30: 15 | I30: 0 | L30: 0.5 | M30: 7.5 | O30: 0 | T30: 통신 3-1-1 | W30: =(M30*노임단가!C9)*V30 -> 0 | Y30: 0
I31: 0 | M31: 0 | O31: 0 | Y31: 0
A32: 4. 전산실 트레이 설치공사 | B32: 케이블 트레이 | C32: W500 | D32: M | E32: 10 | F32: 57 | G32: 5.7 | I32: 0 | L32: 4.45 | M32: 25.365 | O32: 0 | T32: 통신 3-4-1 | W32: =(M32*노임단가!C11)*V32 -> 0 | Y32: 0
I33: 0 | Q33: =P33*G33*$G$2 -> 0 | S33: =R33*G33*$G$2 -> 0 | Y33: =SUM(Y32) -> 0
A34: 합 계 | H34: =SUM(I5:I33) -> 469.75 | J34: =SUM(K5:K33) -> 16.18 | L34: =SUM(M5:M33) -> 102.8694 | N34: =SUM(O5:O33) -> 93.04 | P34: =SUM(Q5:Q33) -> 64.28 | R34: =SUM(S5:S33) -> 57.22 | W34: =SUM(W5:W33) -> 0 | X34: =SUM(X5:X33) -> 0 | Y34: =SUM(Y33,Y31,Y21,Y16) -> 0

Sheet 노임단가
A1: 적용기간 : 2021.1.1 ~ 8.31
B3: 직종 | C3: 2021년 상반기 적용
C4: 시중노임(2021. 1. 1)
A5: 1086 | B5: 통신내선공 | C5: 224251
A6: 1087 | B6: 통신설비공 | C6: 245619
A7: 1088 | B7: 통신외선공 | C7: 319849
A8: 1089 | B8: 통신케이블공 | C8: 339623
A9: 1090 | B9: 무선안테나공 | C9: 273520
A10: 1002 | B10: 보통인부 | C10: 141096
A11: 1003 | B11: 특별인부 | C11: 179203
A12: 2001 | B12: 광케이블설치사 | C12: 360206
A13: 2002 | B13: H/W시험사 | C13: 330411
A14: 2003 | B14: S/W시험사 | C14: 354793
A15: 5001 | B15: 통신관련기사 | C15: 257342
A16: 5002 | B16: 통신관련산업기사 | C16: 254403
A17: 5003 | B17: 통신관련기능사 | C17: 206555
G26: 2020
